bitfinex/quotes_ETHUSD_20250215
["timestamp","ask_amount","ask_price","bid_price","bid_amount"]
[1739578330844,5.29,2725.7,2725.5,3.66903]
[1739578331046,5.29,2725.7,2725.5,3.66897]
[1739578331247,0.06421884,2725.6,2725.4,3.66917]
[1739578331478,0.06421884,2725.6,2725.5,3.66905]
[1739578331881,0.8178,2725.9,2725.5,3.66905]
[1739578332057,0.06421884,2725.8,2725.5,3.66905]
[1739578332368,0.06421884,2725.8,2725.5,7.33803]
[1739578333009,0.06421884,2725.8,2725.5,3.66898]
[1739578333146,0.06421884,2725.8,2725.4,1.1474382]
[1739578333481,0.06421884,2725.8,2725.5,0.48166682]
[1739578333790,0.06421884,2725.8,2725.6,3.6689]
[1739578334345,0.06421884,2725.8,2725.7,3.66878]
[1739578334551,3.66838,2726.0,2725.6,3.6689]
[1739578334773,0.06421884,2725.8,2725.6,3.6689]
[1739578335106,4.42806,2726.1,2725.7,3.66876]
[1739578335415,0.7598,2726.1,2725.7,3.66869]
[1739578335769,0.7598,2726.1,2725.8,3.66859]
[1739578335976,3.66805,2726.3,2725.9,3.66844]
[1739578336621,3.66805,2726.3,2725.8,0.733728]
[1739578336826,0.7598,2726.4,2725.8,3.66863]
[1739578337032,3.66799,2726.3,2725.8,3.66863]
[1739578337526,3.66837,2726.0,2725.3,4.47921]
[1739578337727,0.7598,2726.1,2725.5,3.66904]
[1739578337932,0.7598,2726.1,2725.9,3.66849]
[1739578338081,0.7598,2726.1,2725.8,3.66855]
[1739578338282,0.7598,2726.1,2725.8,3.66861]
[1739578340035,3.6684,2726.0,2725.5,3.66905]
[1739578340236,0.829,2725.6,2725.0,0.7627]
[1739578340451,0.04586473,2725.5,2724.8,8.92944959]
[1739578340582,0.04586473,2725.5,2724.8,4.49683959]
[1739578340583,3.66935,2725.3,2724.8,4.49683959]
[1739578340938,3.66925,2725.4,2724.8,4.49683959]
[1739578341117,7.33852,2725.4,2724.9,3.66975]
[1739578341432,3.66937,2725.3,2724.8,4.49683959]
[1739578341634,3.66909,2725.5,2724.8,0.82696959]
[1739578341838,3.66909,2725.5,2725.0,3.66964]
[1739578342340,0.829,2725.6,2725.0,3.66964]
[1739578342509,0.829,2725.6,2725.0,4.43234]
[1739578342705,4.49798,2725.6,2725.0,8.10198]
[1739578342905,4.49798,2725.6,2725.0,4.43234]
[1739578343112,3.66906,2725.5,2725.0,4.43234]
[1739578343493,3.66906,2725.5,2725.0,4.43233]
[1739578343901,0.829,2725.6,2725.1,3.66951]
[1739578344107,0.829,2725.8,2725.3,3.66923]
[1739578344325,4.49766,2725.8,2725.3,3.66923]
[1739578344822,0.829,2725.8,2725.4,3.66915]
[1739578345596,0.06224701,2725.7,2725.4,3.66915]
[1739578346032,5.29,2726.0,2725.4,4.402968]
[1739578346208,0.06224701,2725.6,2725.5,3.66897]
[1739578346719,3.6686,2725.9,2725.4,0.733858]
[1739578346924,0.06224701,2725.8,2725.3,3.66924]
[1739578347125,0.06224701,2725.8,2725.4,3.66916]
[1739578347442,9.75407,2726.0,2725.4,3.66916]
[1739578349544,3.66938,2725.3,2724.8,3.66994]
[1739578349717,0.85768215,2725.2,2724.8,7.33986]
[1739578349917,4.52714215,2725.2,2724.8,4.79062964]
[1739578350136,4.52714215,2725.2,2724.8,3.66992]
[1739578350637,4.52714215,2725.2,2724.6,7.53740635]
[1739578350638,0.85768215,2725.2,2724.6,7.53740635]
[1739578350839,3.66962,2725.1,2724.6,3.09283635]
[1739578351043,3.66984,2725.0,2724.6,3.09283635]
[1739578351343,0.06208215,2724.9,2724.6,3.09283635]
[1739578351746,3.66959,2725.1,2724.6,6.76302635]
[1739578351940,0.06208215,2725.0,2724.6,6.76302635]
[1739578352156,3.73183215,2725.0,2724.6,6.76302635]
[1739578352649,0.06208215,2725.0,2724.6,6.76302635]
[1739578353314,0.06208215,2725.0,2724.7,3.67011]
[1739578353533,0.7956,2725.2,2724.8,3.66998]
[1739578353756,0.06208215,2725.1,2724.8,3.66998]
[1739578354143,0.06208215,2725.1,2724.8,7.33988]
[1739578354338,0.06208215,2725.1,2724.8,3.66988]
[1739578354768,3.73175215,2725.1,2724.6,4.79095263]
[1739578354934,3.73175215,2725.1,2724.6,3.67016]
[1739578355388,3.66972,2725.0,2724.6,3.67016]
[1739578355876,0.06208215,2724.9,2724.5,3.67036]
[1739578356231,0.06208215,2724.9,2724.8,3.66999]
[1739578356637,6.0856,2725.4,2725.0,3.66961]
[1739578357132,4.46412,2725.9,2725.4,3.66908]
[1739578357832,0.7956,2725.9,2725.5,3.66899]
[1739578358177,4.46411,2725.9,2725.5,3.66899]
[1739578358564,0.7956,2725.9,2725.5,4.402801]
[1739578358878,8.95839,2726.0,2725.5,4.402771]
[1739578359226,5.29,2726.0,2725.5,4.402771]
[1739578359428,5.29,2726.0,2725.6,3.6688]
[1739578359675,5.29,2726.0,2725.6,3.66891]
[1739578359876,5.29,2726.0,2725.6,0.8848181]
[1739578360287,5.29,2726.0,2725.6,4.5536181]
[1739578361106,5.29,2726.0,2725.7,3.66878]
[1739578361290,5.29,2726.0,2725.8,3.66863]
[1739578361495,6.0644,2726.3,2725.6,0.8848181]
[1739578361674,0.7744,2726.3,2726.0,3.66831]
[1739578362158,0.7744,2726.3,2725.9,3.66843]
[1739578362356,0.7744,2726.3,2725.9,7.33685]
[1739578362909,3.66831,2726.1,2725.6,3.66891]
[1739578363114,4.44244,2726.3,2725.7,3.66877]
[1739578363272,4.44244,2726.3,2725.8,3.66862]
[1739578363456,4.44244,2726.3,2725.6,4.78964663]
[1739578363796,3.71403363,2726.2,2725.6,8.45846663]
[1739578363970,3.66818,2726.2,2725.6,4.78955663]
[1739578364166,3.66818,2726.2,2725.7,3.66876]
[1739578364387,3.66818,2726.2,2725.7,4.8238753]
[1739578364557,3.71403367,2726.2,2725.7,1.1551153]
[1739578364891,3.66829,2726.1,2725.5,3.09283635]
[1739578365089,0.7744,2726.0,2725.6,3.6689]
[1739578365495,4.44286,2726.0,2725.4,3.66907]
[1739578365896,4.44286,2726.0,2725.5,3.66898]
[1739578366076,0.7744,2726.0,2725.7,3.66871]
[1739578366411,0.7744,2726.0,2725.8,3.66857]
[1739578366557,0.7744,2726.2,2725.8,3.66857]
[1739578366762,0.7744,2726.2,2725.9,3.66849]
[1739578367204,0.7744,2726.4,2725.9,3.66849]
[1739578367511,4.44224,2726.4,2726.0,3.66836]
[1739578368265,0.7744,2726.4,2726.0,3.66836]
[1739578368599,0.7744,2726.4,2726.1,3.66821]
[1739578368784,0.7744,2726.4,2726.2,3.6681]
[1739578368983,6.0644,2726.6,2726.2,3.6681]
[1739578370000,9.73199,2726.6,2726.2,3.6681]
[1739578370897,9.73199,2726.6,2726.1,3.66824]
[1739578371868,9.73199,2726.6,2726.2,3.6681]
[1739578372464,9.73199,2726.6,2726.0,3.66827]
[1739578372695,9.73199,2726.6,2725.5,3.66898]
[1739578372696,3.66817,2726.2,2725.6,3.66878]
[1739578372996,0.7744,2726.1,2725.7,3.66875]
[1739578373197,3.6684,2726.0,2725.6,3.66878]
[1739578373700,4.48850556,2726.1,2725.6,3.66878]
[1739578373864,0.7744,2726.1,2725.7,3.66875]
[1739578374065,0.7744,2726.1,2725.8,3.66861]
[1739578374485,0.7744,2726.1,2725.7,3.66875]
[1739578374770,0.7744,2726.1,2725.9,3.6685]
[1739578375464,0.7744,2726.1,2725.2,3.09283635]
[1739578375465,3.66846,2726.0,2725.2,3.09283635]
[1739578375694,0.0603212,2726.0,2725.5,3.66903]
[1739578376268,3.66865,2725.8,2725.3,4.45854]
[1739578376469,3.66865,2725.8,2725.3,3.6692]
[1739578376688,0.8172,2725.6,2725.5,3.66905]
[1739578376898,0.06027881,2725.7,2725.5,3.66905]
[1739578377089,4.48586,2725.8,2725.3,3.6692]
[1739578377295,0.06027881,2725.6,2725.3,3.6692]
[1739578377491,4.48586,2725.8,2725.2,6.76227635]
[1739578377695,0.06027881,2725.5,2725.0,3.6696]
[1739578377871,0.04585959,2725.7,2724.9,3.66982]
[1739578377872,3.66925,2725.4,2724.9,3.66982]
[1739578378194,3.66925,2725.4,2724.7,3.67009]
[1739578378195,4.48673,2725.2,2724.7,3.67009]
[1739578378369,0.06017048,2725.1,2724.8,3.66998]
[1739578378803,0.06017048,2725.1,2724.6,7.34033]
[1739578378991,4.48673,2725.2,2724.6,8.8746569]
[1739578379197,0.06017048,2725.1,2724.7,3.66999]
[1739578379581,3.72978048,2725.1,2724.6,5.2044869]
[1739578379780,3.66975,2725.0,2724.5,6.76321635]
[1739578380173,0.06017048,2724.9,2724.6,3.67024]
[1739578380402,3.71548392,2725.1,2724.6,3.67024]
[1739578380590,3.71548392,2725.1,2724.4,4.45975]
[1739578380591,3.72999048,2725.0,2724.4,3.67045]
[1739578380796,3.72999048,2725.0,2724.2,6.76352635]
[1739578380797,3.67007,2724.8,2724.2,6.76352635]
[1739578381113,3.67007,2724.8,2724.2,7.52049899]
[1739578381313,0.06017048,2724.7,2724.2,7.52049899]
[1739578381517,0.06017048,2724.7,2724.0,0.8062]
[1739578381723,3.67057,2724.4,2723.9,3.6712]
[1739578381874,3.67057,2724.4,2723.9,7.3424]
[1739578382074,0.05911031,2724.3,2723.9,7.3424]
[1739578382310,0.05911031,2724.3,2723.9,6.76403635]
[1739578382607,0.8116,2724.5,2724.1,3.67084]
[1739578382786,0.05911031,2724.4,2724.1,3.67084]
[1739578382973,0.05911031,2724.4,2723.9,11.11146999]
[1739578383173,3.72972031,2724.4,2723.9,0.67640364]
[1739578383473,3.72972031,2724.4,2723.8,3.67133]
[1739578383680,0.05911031,2724.4,2723.9,3.67117]
[1739578384090,0.05911031,2724.4,2723.7,3.67137]
[1739578384578,3.67081,2724.2,2723.7,3.67137]
[1739578384774,0.05895474,2724.1,2723.7,3.67137]
[1739578385198,0.05895474,2724.1,2723.8,3.6713]
[1739578385408,3.67087,2724.2,2723.7,3.67147]
[1739578385708,0.05894531,2724.1,2723.7,3.67147]
[1739578385916,0.05894531,2724.1,2723.7,3.67139]
[1739578386129,0.05894531,2724.1,2723.8,3.67121]
[1739578386479,3.67068,2724.3,2723.8,3.67121]
[1739578386681,0.87054531,2724.0,2723.6,3.09283635]
[1739578386981,0.05894531,2723.9,2723.6,6.76443635]
[1739578387409,0.05894531,2723.9,2723.8,3.67134]
[1739578387631,0.8116,2724.3,2723.7,3.67138]
[1739578387798,0.05894531,2723.9,2723.8,3.67131]
[1739578388126,4.52823649,2724.3,2723.8,3.67131]
[1739578388326,0.05894531,2723.9,2723.8,3.67131]
[1739578388531,4.48227,2724.3,2723.8,4.71486164]
[1739578388735,0.05894531,2723.9,2723.7,3.67137]
[1739578388934,3.67082,2724.2,2723.7,7.34274]
[1739578389425,0.05894531,2724.1,2723.7,7.34274]
[1739578389582,0.05894531,2724.1,2723.8,3.67132]
[1739578389776,0.8116,2724.3,2723.9,3.67119]
[1739578390032,0.8116,2724.3,2723.9,7.13114535]
[1739578390185,0.05894531,2724.2,2724.1,3.67093]
[1739578390385,0.8116,2724.3,2724.1,3.67093]
[1739578390582,0.8116,2724.3,2724.2,3.6708]
[1739578390909,5.29,2724.4,2724.3,3.67066]
[1739578391123,9.78315,2724.8,2724.3,3.67066]
[1739578391526,9.78315,2724.8,2724.4,3.67052]
[1739578392246,6.1131,2724.8,2724.4,3.67052]
[1739578393628,6.1131,2724.8,2724.2,7.49780935]
[1739578393824,6.1131,2724.8,2724.3,3.67065]
[1739578394338,6.1131,2724.8,2724.2,7.49772935]
[1739578395439,6.1131,2724.8,2724.3,3.67065]
[1739578395639,6.1131,2724.8,2724.5,3.67032]
[1739578396536,6.1131,2724.8,2723.9,3.45995535]
[1739578396737,6.1131,2724.8,2723.8,3.67126]
[1739578396738,3.67073,2724.3,2723.8,3.67126]
[1739578396942,0.8231,2724.2,2723.9,3.67117]
[1739578397526,0.8231,2724.2,2723.8,3.67133]
[1739578397810,4.49392,2724.2,2723.8,3.67133]
[1739578398028,0.8231,2724.2,2723.8,3.67133]
[1739578398234,0.8231,2724.2,2723.8,3.67134]
[1739578398429,0.8231,2724.2,2723.7,3.67145]
[1739578398649,0.86898807,2724.2,2723.7,3.67145]
[1739578398956,0.8231,2724.2,2723.8,3.67132]
[1739578399752,0.8231,2724.2,2723.7,3.67145]
[1739578400150,4.49391,2724.2,2723.7,3.67145]
[1739578400334,4.49391,2724.2,2723.7,3.6714]
[1739578400662,0.0458881,2724.1,2723.7,3.6714]
[1739578400960,3.67108,2724.0,2723.5,3.67165]
[1739578402062,3.71697081,2724.0,2723.3,7.57692635]
[1739578402359,0.828,2723.7,2723.2,3.67206]
[1739578402657,4.49954,2723.7,2723.2,3.67206]
[1739578402955,3.71757852,2723.6,2723.1,6.67227]
[1739578403318,4.49948,2723.7,2723.2,3.67212]
[1739578403919,0.04589852,2723.6,2723.0,3.67233]
[1739578404123,0.7665,2723.5,2723.1,3.67215]
[1739578404361,0.81239953,2723.5,2723.1,3.67215]
[1739578404520,0.7665,2723.5,2723.1,3.67215]
[1739578404726,4.48419953,2723.5,2723.0,3.67235]
[1739578404926,0.7665,2723.5,2723.1,7.34454]
[1739578405152,0.7665,2723.5,2723.1,3.67227]
[1739578405370,4.43825,2723.5,2723.1,3.67227]
[1739578405664,0.05874724,2723.4,2723.1,3.67227]
[1739578405825,0.05874724,2723.4,2723.0,3.09283635]
[1739578406026,0.05874724,2723.4,2723.3,3.67201]
[1739578406842,0.05874724,2723.4,2723.1,7.34439]
[1739578407135,0.05874724,2723.4,2723.1,3.67219]
[1739578407747,0.05874724,2723.4,2723.0,6.76524635]
[1739578407949,0.05874724,2723.4,2722.8,3.67263]
[1739578407950,0.7665,2723.2,2722.8,3.67263]
[1739578408165,4.43865,2723.2,2722.8,3.67263]
[1739578408333,0.05828985,2723.1,2722.8,3.67263]
[1739578408536,0.05828985,2723.1,2722.8,7.34525]
[1739578408757,0.05828985,2723.1,2722.8,3.67262]
[1739578409555,0.10419628,2723.1,2722.7,6.76564635]
[1739578409871,0.05828985,2723.1,2722.8,3.67268]
[1739578410167,0.10419628,2723.1,2722.8,3.67268]
[1739578410539,3.77647628,2723.1,2722.6,3.67288]
[1739578410746,3.67264,2722.9,2722.4,3.09283635]
[1739578410971,0.04591237,2722.8,2722.4,6.76605635]
[1739578411265,0.04591237,2722.8,2722.4,3.67322]
[1739578411266,0.10391917,2722.8,2722.4,3.67322]
[1739578411440,0.7665,2722.7,2722.4,3.67322]
[1739578411964,0.0580068,2722.6,2722.3,3.6733]
[1739578412345,0.0580068,2722.6,2722.4,3.67321]
[1739578413737,0.10392014,2722.6,2722.3,3.67335]
[1739578413936,0.10392014,2722.6,2722.2,3.67348]
[1739578414537,4.43959,2722.5,2722.0,3.67366]
[1739578415371,0.05775195,2722.4,2722.2,3.67346]
[1739578415577,0.05775195,2722.4,2722.3,3.67336]
[1739578415734,0.05775195,2722.4,2722.3,4.49236]
[1739578416090,0.7665,2722.5,2722.4,3.67321]
[1739578416285,0.7665,2722.5,2722.3,3.67334]
[1739578416437,0.82432275,2722.5,2722.3,3.67334]
[1739578416636,0.82432275,2722.5,2722.4,3.67322]
[1739578418773,0.82432275,2722.5,2722.2,3.67348]
[1739578419562,0.82432275,2722.5,2722.3,3.67335]
[1739578419738,0.82432275,2722.5,2722.3,3.67336]
[1739578420752,0.82432275,2722.5,2722.2,3.67341]
[1739578420947,0.82432275,2722.5,2722.3,3.67334]
[1739578421257,0.82432275,2722.5,2722.4,3.67322]
[1739578421446,0.05782275,2722.5,2722.4,4.407876]
[1739578421644,5.29,2723.3,2722.8,3.67268]
[1739578421846,0.83621881,2723.2,2722.8,3.67268]
[1739578422051,0.83621881,2723.2,2722.9,3.67249]
[1739578422277,0.83621881,2723.2,2723.1,3.67228]
[1739578422965,0.83621881,2723.2,2723.0,3.67241]
[1739578423450,0.05531881,2723.2,2723.1,3.67228]
[1739578423660,5.29,2723.3,2723.1,3.67228]
[1739578423868,0.05539433,2723.2,2722.9,7.345]
[1739578424078,0.05539433,2723.2,2722.9,3.67247]
[1739578424294,5.33590405,2723.3,2723.0,3.67234]
[1739578424495,0.05539433,2723.1,2723.0,3.67234]
[1739578424678,5.33590405,2723.3,2723.0,3.67234]
[1739578424887,0.05539433,2723.1,2723.0,3.67234]
[1739578425092,5.29,2723.3,2723.0,3.67234]
[1739578425293,0.05539433,2723.1,2723.0,3.67234]
[1739578425602,5.33590461,2723.3,2723.0,3.67234]
[1739578425753,0.05539433,2723.1,2722.7,3.67272]
[1739578425957,5.29,2723.3,2723.0,3.67228]
[1739578426765,5.29,2723.3,2723.2,3.67215]
[1739578426992,5.29,2723.6,2723.1,3.67226]
[1739578427157,0.7809,2723.7,2723.6,3.67161]
[1739578430712,0.7809,2723.7,2723.5,3.67173]
[1739578431219,0.7809,2723.7,2723.6,3.67161]
[1739578432170,5.29,2723.9,2723.7,3.67143]
[1739578432469,5.29,2723.9,2723.6,3.67161]
[1739578432670,5.29,2723.9,2723.5,3.67173]
[1739578432904,0.0458961,2723.8,2723.5,3.67174]
[1739578433085,5.29,2723.9,2723.6,3.67158]
[1739578433283,5.29,2723.9,2723.7,3.67147]
[1739578434083,5.29,2723.9,2723.7,3.67137]
[1739578434497,5.29,2723.9,2723.5,3.67165]
[1739578434904,5.29,2723.9,2723.6,3.67158]
[1739578435124,5.29,2723.9,2723.7,3.67146]
[1739578435480,0.05593225,2723.8,2723.7,3.67146]
[1739578437590,0.05593225,2723.8,2723.2,4.34862964]
[1739578437591,0.05593225,2723.8,2723.4,3.67179]
[1739578437909,0.7863,2723.7,2723.6,3.67161]
[1739578438509,0.84223225,2723.7,2723.6,3.67161]
[1739578439676,0.84223225,2723.7,2723.5,3.67163]
[1739578441017,0.84223225,2723.7,2723.5,7.34329]
[1739578441182,0.84223225,2723.7,2723.5,3.67163]
[1739578443019,0.84223225,2723.7,2723.6,3.67161]
[1739578443702,0.84223225,2723.7,2723.5,3.67174]
[1739578444042,0.84223225,2723.7,2723.5,3.67172]
[1739578447547,0.84223225,2723.7,2723.6,3.67161]
[1739578450649,0.05593225,2723.7,2723.6,3.67161]
[1739578451015,5.29,2723.9,2723.7,3.67144]
[1739578452332,0.04589459,2723.8,2723.7,3.67147]
[1739578452536,5.29,2723.9,2723.7,3.67147]
[1739578453850,0.04589458,2723.8,2723.7,3.67147]
[1739578454337,5.29,2723.9,2723.7,3.67147]
[1739578454723,0.04589456,2723.8,2723.2,3.67214]
[1739578454997,0.04589456,2723.8,2723.6,3.67153]
[1739578455122,0.04589456,2723.8,2723.2,3.67214]
[1739578455457,5.29,2723.9,2723.6,3.67152]
[1739578455603,5.29,2723.9,2723.6,7.34303]
[1739578455807,5.29,2723.9,2723.7,3.67139]
[1739578456623,0.04589456,2723.8,2723.4,3.67175]
[1739578456826,0.7663,2723.7,2723.4,3.6718]
[1739578457055,0.04589877,2723.6,2723.4,3.6718]
[1739578457407,0.7663,2723.7,2723.4,3.6718]
[1739578457855,0.7663,2723.7,2723.5,3.67174]
[1739578458562,0.7663,2723.7,2723.3,3.6719]
[1739578459837,0.7663,2723.7,2723.3,7.34384]
[1739578460037,0.7663,2723.7,2723.3,3.6719]
[1739578460355,0.04589993,2723.6,2723.0,3.67233]
[1739578460528,8.96181,2723.5,2722.9,3.67254]
[1739578460858,8.96181,2723.5,2723.0,3.67242]
[1739578461211,8.96181,2723.5,2723.1,3.67227]
[1739578461960,11.16381,2723.5,2723.1,3.67227]
[1739578462486,8.96181,2723.5,2723.1,3.67227]
[1739578464166,0.04590429,2723.4,2723.0,3.67241]
[1739578464362,0.7779,2723.3,2723.0,3.67241]
[1739578464516,0.0459051,2723.2,2723.0,3.67241]
[1739578465233,0.7779,2723.3,2723.0,3.67232]
[1739578465558,0.10176659,2723.2,2723.1,3.67228]
[1739578465763,0.05586149,2723.2,2723.0,3.67232]
[1739578466055,0.04590428,2723.2,2723.0,3.67232]
[1739578466276,0.05586149,2723.1,2723.0,3.67232]
[1739578467490,0.7779,2723.3,2723.0,3.67232]
[1739578467681,0.10176657,2723.2,2723.0,3.67232]
[1739578468176,0.05586149,2723.2,2723.0,3.67232]
[1739578468337,0.10176657,2723.2,2723.0,3.67232]
[1739578468539,0.04590508,2723.2,2723.0,3.67232]
[1739578468740,0.05586149,2723.1,2723.0,3.67232]
[1739578468935,0.05586149,2723.1,2723.0,5.235005]
[1739578469231,0.7779,2723.9,2723.0,1.562685]
[1739578469430,0.05365603,2723.8,2723.7,3.67147]
[1739578469634,0.816,2724.1,2723.7,3.67147]
[1739578469833,0.05365603,2724.0,2723.7,3.67147]
[1739578470034,0.05365603,2724.0,2723.7,3.67141]
[1739578470289,0.05365603,2724.0,2723.9,3.6712]
[1739578471440,4.53242068,2724.4,2723.9,3.6712]
[1739578471642,0.05393009,2724.3,2723.9,3.6712]
[1739578472052,0.09982076,2724.3,2723.9,3.6712]
[1739578472270,0.05393009,2724.3,2723.9,3.6712]
[1739578472472,0.04589067,2724.2,2723.9,3.6712]
[1739578472840,0.05393009,2724.1,2723.8,3.67132]
[1739578473142,3.71669134,2724.2,2723.8,3.67132]
[1739578473345,0.05397733,2724.0,2723.8,3.67132]
[1739578473655,3.85577496,2724.7,2723.9,0.7902]
[1739578473891,5.815,2725.0,2723.9,0.7902]
[1739578473892,0.816,2724.6,2724.3,3.67065]
[1739578474096,0.816,2724.6,2724.1,3.67092]
[1739578474524,0.816,2724.6,2724.2,3.67079]
[1739578475420,0.816,2724.6,2724.2,3.67071]
[1739578476232,0.816,2724.6,2724.2,7.34143]
[1739578476821,0.816,2724.6,2724.3,3.67066]
[1739578476984,0.816,2724.6,2724.4,3.67045]
[1739578477184,0.816,2724.8,2724.0,3.67107]
[1739578477481,0.816,2724.8,2724.4,3.67044]
[1739578477684,0.816,2724.8,2724.5,3.67039]
[1739578478014,6.106,2724.8,2724.5,3.67039]
[1739578478181,11.105,2725.0,2724.8,3.66999]
[1739578478378,11.105,2725.0,2724.9,3.66985]
[1739578478622,11.105,2725.0,2724.8,3.66999]
[1739578478995,11.105,2725.0,2724.8,7.33988]
[1739578479182,11.105,2725.0,2724.8,3.66989]
[1739578479634,5.29,2725.0,2724.8,7.33979]
[1739578479926,5.29,2725.0,2724.8,3.66989]
[1739578480527,0.05408597,2724.9,2724.8,3.66989]
[1739578483693,0.05408597,2724.9,2724.7,3.67011]
[1739578483891,0.09947815,2724.9,2724.2,3.09283635]
[1739578484218,0.7743,2724.7,2724.3,3.67066]
[1739578484588,0.05479451,2724.6,2724.3,3.67066]
[1739578484788,0.10067558,2724.6,2724.1,4.4774]
[1739578484989,3.67046,2724.5,2724.0,3.67096]
[1739578485217,0.0458851,2724.4,2723.9,7.57044635]
[1739578485432,3.72514451,2724.6,2724.2,3.67073]
[1739578485433,5.29,2724.5,2724.2,3.67073]
[1739578485805,0.05479451,2724.4,2724.0,3.67094]
[1739578486008,0.10067978,2724.4,2724.0,3.67094]
[1739578486533,0.05479451,2724.4,2724.0,3.67094]
[1739578487346,0.05479451,2724.4,2724.1,3.67093]
[1739578487838,0.05479451,2724.4,2724.1,7.34177]
[1739578488142,0.05479451,2724.4,2724.1,1.12411064]
[1739578488321,0.05479451,2724.4,2724.2,3.67068]
[1739578488509,0.05479451,2724.4,2724.3,3.67066]
[1739578491244,0.05479451,2724.4,2724.3,4.47716]
[1739578492017,0.05479451,2724.4,2724.1,3.6708]
[1739578492221,0.05479451,2724.4,2724.2,3.67077]
[1739578493065,0.05479451,2724.4,2724.1,3.6708]
[1739578493267,0.05479451,2724.4,2724.2,3.6708]
[1739578493668,0.05479451,2724.4,2724.1,3.6708]
[1739578494297,0.05479451,2724.4,2724.1,7.34161]
[1739578495398,0.83029451,2724.4,2724.1,3.6708]
[1739578495605,4.50082451,2724.4,2724.0,3.67105]
[1739578495956,0.83029451,2724.4,2724.1,3.67092]
[1739578496366,0.05479451,2724.4,2724.1,3.67082]
[1739578498013,0.05479451,2724.4,2724.1,7.34166]
[1739578498200,0.05479451,2724.4,2724.1,3.67082]
[1739578498409,0.05479451,2724.4,2723.9,6.76393635]
[1739578498705,0.05479451,2724.4,2724.0,3.67106]
[1739578499115,0.05479451,2724.4,2724.1,3.67092]
[1739578500679,0.05479451,2724.4,2724.0,3.67106]
[1739578500884,0.05479451,2724.4,2724.0,3.67098]
[1739578501379,0.05479451,2724.4,2724.1,3.67092]
[1739578502633,0.05479451,2724.4,2724.3,4.44096]
[1739578503279,0.05479451,2724.4,2724.2,6.76352635]
[1739578503991,4.50086451,2724.4,2723.9,4.23963079]
[1739578504194,3.67067,2724.3,2723.9,4.23963079]
[1739578504423,4.54671934,2724.4,2724.0,3.67106]
[1739578504581,0.05284871,2724.2,2724.0,3.67106]
[1739578504780,0.7755,2724.4,2724.0,4.46212908]
[1739578504980,0.05284871,2724.1,2724.0,4.46212908]
[1739578505182,0.7755,2724.4,2724.0,4.46212908]
[1739578505425,0.05284871,2724.1,2724.0,4.46212908]
[1739578505588,4.44604,2724.4,2724.0,4.46212908]
[1739578505788,0.05284871,2724.1,2723.9,3.67117]
[1739578505989,0.7755,2724.4,2723.7,0.7703]
[1739578506219,0.7755,2724.4,2723.6,3.09283635]
[1739578506220,3.72394871,2724.0,2723.6,3.09283635]
[1739578506430,4.4466,2724.0,2723.6,3.09283635]
[1739578506606,0.09863925,2723.9,2723.3,3.86313635]
[1739578506805,3.67135,2723.8,2723.3,8.28853499]
[1739578507019,3.67135,2723.8,2723.0,4.59762135]
[1739578507215,0.82139641,2723.7,2723.3,3.67199]
[1739578507397,0.05274955,2723.7,2723.4,3.67182]
[1739578507595,0.05274955,2723.7,2723.5,3.67162]
[1739578507932,0.05274955,2723.6,2723.1,3.67219]
[1739578508110,0.7755,2723.6,2723.2,3.67213]
[1739578508432,4.44717,2723.6,2723.1,4.85153637]
[1739578508637,0.7755,2723.6,2723.1,8.52373637]
[1739578508795,0.09864686,2723.5,2722.8,0.7703]
[1739578508979,0.7755,2723.3,2722.7,6.76557635]
[1739578509174,9.73761,2723.3,2722.7,6.76555635]
[1739578509438,0.05242834,2723.2,2722.7,6.76555635]
[1739578509728,3.72465834,2723.2,2722.7,6.76555635]
[1739578510238,0.05242834,2723.2,2722.7,3.09283635]
[1739578510428,0.05242834,2723.2,2722.7,6.76564635]
[1739578510580,3.72463834,2723.2,2722.7,6.76564635]
[1739578511327,0.05242834,2723.2,2722.9,3.67244]
[1739578511625,5.29,2723.3,2723.0,3.09283635]
[1739578511782,5.29,2723.3,2723.1,3.67228]
[1739578511981,0.04590104,2723.2,2722.7,3.67271]
[1739578512213,4.54507104,2723.2,2722.7,7.34545]
[1739578512418,4.49917,2723.2,2722.7,3.67271]
[1739578512619,4.54507543,2723.2,2722.7,3.67274]
[1739578513331,3.67235,2723.1,2722.6,0.7703]
[1739578513499,4.49917,2723.2,2722.6,0.7703]
[1739578513710,0.827,2723.2,2722.7,3.67272]
[1739578513908,0.04590577,2723.1,2722.6,0.7703]
[1739578514217,0.827,2723.2,2722.7,3.67271]
[1739578514418,0.827,2723.2,2722.9,3.67252]
[1739578514599,0.827,2723.2,2723.0,3.67241]
[1739578514797,5.29,2723.3,2723.0,3.67241]
[1739578515019,5.29,2723.3,2722.9,3.67252]
[1739578515445,5.29,2723.3,2723.0,3.67234]
[1739578515948,5.29,2723.3,2722.8,3.67256]
[1739578516750,0.04590594,2723.2,2722.7,3.09283635]
[1739578516927,3.67293,2722.7,2722.1,7.58287635]
[1739578517238,0.87291515,2722.6,2722.2,3.67338]
[1739578517455,0.827,2722.6,2722.2,3.67338]
[1739578518018,3.71903503,2722.5,2722.1,3.67363]
[1739578518232,0.04591503,2722.5,2722.1,3.67363]
[1739578518433,4.49996,2722.6,2722.1,3.67363]
[1739578518634,3.71904709,2722.5,2722.0,3.67375]
[1739578518933,3.67331,2722.4,2721.9,3.67381]
[1739578519663,0.7713,2722.2,2721.8,6.76675635]
[1739578520765,0.81722132,2722.2,2721.8,6.76675635]
[1739578521861,0.7713,2722.2,2721.9,3.67387]
[1739578522218,0.7713,2722.2,2721.8,3.09283635]
[1739578522448,0.7713,2722.2,2721.8,6.76679635]
[1739578522873,4.44484,2722.2,2721.8,3.09283635]
[1739578523077,3.67366,2722.1,2721.7,3.67409]
[1739578523240,8.96366,2722.1,2721.7,3.67409]
[1739578523573,8.96366,2722.1,2721.5,6.76718635]